bitfinex-derivatives/quotes_SOLF0:USTF0_20250625
["timestamp","ask_amount","ask_price","bid_price","bid_amount"]
[1750857850802,626.9311,147.35,147.26,38.16]
[1750857850994,631.15415353,147.35,147.28,4.22305353]
[1750857851194,631.15415353,147.35,147.26,38.16]
[1750857851400,626.9311,147.35,147.19,2.2086]
[1750857851602,4.22305353,147.28,147.2,4.22305353]
[1750857851795,4.22305353,147.26,147.2,4.22305353]
[1750857851996,38.1,147.26,147.2,4.22305353]
[1750857852704,38.1,147.26,147.23,6.7879]
[1750857853703,38.1,147.26,147.24,6.7877]
[1750857855400,38.1,147.26,147.25,6.7874]
[1750857855598,38.1,147.29,147.25,6.7874]
[1750857855794,6.7863,147.28,147.21,7.03988113]
[1750857855995,6.7863,147.28,147.25,6.7873]
[1750857856602,6.7863,147.28,147.24,6.7877]
[1750857856801,45.13988113,147.29,147.24,6.7877]
[1750857857304,45.13988113,147.29,147.25,6.7874]
[1750857857690,38.1,147.29,147.18,42.8583]
[1750857857903,2.2728,147.32,147.25,7.03988113]
[1750857859001,2.2728,147.32,147.3,6.7847]
[1750857859200,2.2728,147.32,147.25,7.03988113]
[1750857859390,2.2728,147.32,147.3,6.7849]
[1750857860896,2.2728,147.32,147.31,6.7846]
[1750857861499,2.3261,147.33,147.32,6.7842]
[1750857861801,38.1,147.34,147.27,7.03988113]
[1750857862399,586.48,147.35,147.27,7.03988113]
[1750857862600,624.58,147.35,147.27,7.03988113]
[1750857863407,624.58,147.35,147.33,6.7835]
[1750857864899,624.58,147.35,147.34,6.7833]
[1750857865103,624.58,147.35,147.26,62.0]
[1750857865501,624.58,147.35,147.32,6.7838]
[1750857865711,624.58,147.35,147.28,7.03988113]
[1750857866809,624.58,147.35,147.33,6.7834]
[1750857868005,38.1,147.35,147.34,6.7833]
[1750857869119,38.1,147.35,147.28,38.1]
[1750857869312,38.1,147.35,147.29,7.03988113]
[1750857869716,38.1,147.35,147.33,6.7833]
[1750857870408,38.1,147.35,147.31,6.7843]
[1750857871109,38.1,147.35,147.29,7.03988113]
[1750857871307,30.40034745,147.51,147.33,7.03988113]
[1750857871511,38.1,147.43,147.35,7.03988113]
[1750857871904,38.1,147.43,147.3,7.03988113]
[1750857871905,45.13988113,147.43,147.33,7.03988113]
[1750857872106,12.68047993,147.41,147.33,7.03988113]
[1750857872312,7.03988113,147.4,147.31,9.27798113]
[1750857872507,38.1,147.39,147.31,9.27798113]
[1750857873022,7.03988113,147.38,147.29,45.13988113]
[1750857873316,13.98418113,147.38,147.32,6.7841]
[1750857873716,13.98418113,147.38,147.27,7.03988113]
[1750857874019,7.03988113,147.36,147.26,7.03988113]
[1750857874218,38.1,147.35,147.26,7.03988113]
[1750857874407,6.7836,147.34,147.29,6.7852]
[1750857874808,6.7841,147.33,147.28,6.7858]
[1750857875009,6.7841,147.33,147.26,7.03988113]
[1750857875412,6.7836,147.34,147.29,6.7853]
[1750857875622,45.13988113,147.35,147.29,6.7853]
[1750857876309,6.7841,147.33,147.29,6.7853]
[1750857876827,6.7834,147.34,147.28,7.03988113]
[1750857877323,6.7834,147.34,147.31,6.7846]
[1750857877524,6.7838,147.33,147.28,7.03988113]
[1750857877933,6.7838,147.33,147.26,7.03988113]
[1750857878124,6.7838,147.33,147.29,6.7853]
[1750857878428,6.7843,147.32,147.29,6.7853]
[1750857878822,45.13988113,147.35,147.24,2.2381]
[1750857878823,6.7849,147.31,147.24,9.27798113]
[1750857879624,6.7854,147.3,147.24,9.27798113]
[1750857879820,7.03988113,147.34,147.27,6.7861]
[1750857880221,6.7854,147.3,147.27,6.7861]
[1750857880423,38.1,147.31,147.23,38.1]
[1750857880723,27.3343,147.38,147.18,2.2562]
[1750857880724,6.7872,147.26,147.2,38.1]
[1750857881031,6.7872,147.26,147.23,6.7882]
[1750857881829,44.8867,147.27,147.24,6.7878]
[1750857882231,2.438,147.3,147.27,6.7862]
[1750857882421,2.438,147.3,147.25,7.03988113]
[1750857882827,38.02,147.33,147.25,7.03988113]
[1750857883027,40.2836,147.33,147.25,7.03988113]
[1750857883332,40.2836,147.33,147.3,6.7851]
[1750857883629,40.2836,147.33,147.25,7.03988113]
[1750857884441,40.2836,147.33,147.31,6.7844]
[1750857884625,38.02,147.33,147.27,7.03988113]
[1750857885131,38.02,147.33,147.32,6.7842]
[1750857886333,6.7819,147.37,147.29,7.03988113]
[1750857886334,38.02,147.36,147.29,7.03988113]
[1750857886822,38.02,147.36,147.34,6.783]
[1750857888533,38.02,147.37,147.35,6.7827]
[1750857888739,6.9145,147.38,147.35,6.7827]
[1750857888940,6.9145,147.38,147.32,7.03988113]
[1750857889147,38.02,147.4,147.34,7.03988113]
[1750857889439,44.8008,147.4,147.32,45.05988113]
[1750857890147,38.02,147.4,147.34,7.03988113]
[1750857890641,38.02,147.4,147.38,6.7813]
[1750857890846,38.02,147.4,147.32,38.02]
[1750857891030,38.02,147.4,147.38,6.7812]
[1750857891232,38.02,147.4,147.32,45.05988113]
[1750857891638,38.02,147.4,147.34,7.03988113]
[1750857892036,38.02,147.4,147.39,6.7809]
[1750857892241,5.6405988,147.41,147.34,7.03988113]
[1750857892549,5.6405988,147.41,147.33,2.2532]
[1750857892745,5.6405988,147.41,147.39,6.7806]
[1750857892946,5.6405988,147.41,147.35,7.03988113]
[1750857893147,5.6405988,147.41,147.4,6.7805]
[1750857893336,5.6405988,147.41,147.33,2.2532]
[1750857893542,5.6405988,147.41,147.33,9.29308113]
[1750857893737,12.4208988,147.41,147.37,6.7815]
[1750857894144,6.7812,147.39,147.32,38.02]
[1750857894644,45.05988113,147.4,147.32,38.02]
[1750857894849,6.7812,147.39,147.32,38.02]
[1750857895740,45.05988113,147.4,147.33,6.7835]
[1750857895741,6.7821,147.37,147.33,6.7835]
[1750857895943,6.7821,147.37,147.29,62.0]
[1750857895944,7.03988113,147.38,147.3,7.03988113]
[1750857896649,6.7819,147.37,147.34,6.783]
[1750857897040,7.03988113,147.38,147.3,7.03988113]
[1750857897242,7.03988113,147.38,147.35,6.7823]
[1750857897449,6.7813,147.39,147.35,6.7823]
[1750857897645,6.7813,147.39,147.29,38.02]
[1750857897646,51.84058113,147.4,147.36,6.782]
[1750857897951,44.8007,147.4,147.32,7.03988113]
[1750857898345,44.8007,147.4,147.37,6.7816]
[1750857899141,38.02,147.4,147.37,6.7816]
[1750857900349,7.03988113,147.39,147.23,16.53203696]
[1750857900547,7.03988113,147.34,147.23,7.03988113]
[1750857900737,13.82428113,147.32,147.23,7.03988113]
[1750857900941,51.84428113,147.32,147.23,7.03988113]
[1750857901144,40.356,147.32,147.29,6.7854]
[1750857901357,47.1405,147.32,147.23,7.03988113]
[1750857901551,40.356,147.32,147.22,40.2207]
[1750857901755,40.356,147.32,147.27,6.7864]
[1750857902047,40.356,147.32,147.22,40.2207]
[1750857902048,7.03988113,147.29,147.22,38.02]
[1750857902243,38.02,147.28,147.19,38.02]
[1750857902444,38.02,147.28,147.19,45.05988113]
[1750857903251,38.02,147.28,147.19,38.02]
[1750857903456,38.02,147.28,147.19,45.05988113]
[1750857903641,38.02,147.28,147.19,38.02]
[1750857903844,38.02,147.28,147.25,6.7871]
[1750857904246,6.7866,147.27,147.19,38.02]
[1750857904750,13.82848113,147.23,147.19,6.7899]
[1750857904954,7.03988113,147.21,147.12,45.05988113]
[1750857905149,38.02,147.2,147.12,45.05988113]
[1750857905453,13.83038113,147.19,147.15,6.7917]
[1750857905854,2.2675,147.21,147.14,7.03988113]
[1750857906450,9.0567,147.21,147.17,6.7906]
[1750857906752,2.2675,147.21,147.13,7.03988113]
[1750857907248,2.2675,147.21,147.11,9.40018113]
[1750857907454,7.03988113,147.2,147.11,7.03988113]
[1750857907644,586.24,147.19,147.01,16.53203696]
[1750857907845,586.24,147.19,147.09,7.03988113]
[1750857907846,38.02,147.18,147.09,7.03988113]
[1750857908048,44.8108,147.18,147.09,7.03988113]
[1750857908256,38.02,147.18,147.07,38.02]
[1750857908455,38.02,147.18,147.09,7.03988113]
[1750857908654,6.7914,147.17,147.12,6.7931]
[1750857908857,38.02,147.18,147.12,7.03988113]
[1750857909153,38.02,147.18,147.14,6.7921]
[1750857909353,38.02,147.18,147.12,7.03988113]
[1750857910151,38.02,147.18,147.08,62.0]
[1750857910449,38.02,147.18,147.1,7.03988113]
[1750857911359,38.02,147.18,147.15,6.7917]
[1750857912054,38.02,147.18,147.14,6.7923]
[1750857912648,38.02,147.18,147.13,6.7928]
[1750857912849,38.02,147.18,147.1,7.03988113]
[1750857913160,38.02,147.18,147.12,7.03988113]
[1750857913353,38.02,147.18,147.14,7.03988113]
[1750857913861,38.02,147.18,147.15,6.7917]
[1750857914055,38.02,147.18,147.14,7.03988113]
[1750857914450,40.2475,147.21,147.16,7.03988113]
[1750857914756,6.79,147.2,147.12,7.03988113]
[1750857914969,40.2475,147.21,147.12,7.03988113]
[1750857915348,47.037,147.21,147.12,7.03988113]
[1750857915653,40.2475,147.21,147.16,7.03988113]
[1750857917465,47.0371,147.21,147.17,6.7909]
[1750857917961,6.79,147.2,147.16,6.7914]
[1750857918352,40.2475,147.21,147.14,7.03988113]
[1750857918554,6.79,147.2,147.16,6.7913]
[1750857918754,6.79,147.2,147.14,7.03988113]
[1750857919058,6.7902,147.19,147.16,6.7913]
[1750857919254,47.28738113,147.21,147.12,7.03988113]
[1750857919654,6.7916,147.16,147.09,7.03988113]
[1750857919858,37.98,147.15,147.08,37.98]
[1750857920156,37.98,147.15,147.09,7.03988113]
[1750857920659,37.98,147.15,147.12,6.7931]
[1750857920861,37.98,147.15,147.09,7.03988113]
[1750857921259,37.98,147.15,147.12,6.7931]
[1750857921960,37.98,147.15,147.13,6.7929]
[1750857922756,37.98,147.15,147.14,6.7925]
[1750857923155,2.2675,147.21,147.08,51.57]
[1750857923363,2.2675,147.21,147.15,7.03988113]
[1750857923665,2.2675,147.21,147.13,7.03988113]
[1750857923863,2.2675,147.21,147.17,6.7911]
[1750857924065,9.057,147.21,147.17,6.7911]
[1750857924265,2.2675,147.21,147.17,6.7911]
[1750857924459,2.2675,147.21,147.18,6.7906]
[1750857924966,2.2675,147.21,147.19,6.79]
[1750857925867,9.0569,147.21,147.18,6.7905]
[1750857926055,9.0569,147.21,147.14,7.03988113]
[1750857926056,2.2675,147.21,147.12,45.01988113]
[1750857926568,2.2675,147.21,147.14,7.03988113]
[1750857927364,2.2675,147.21,147.16,7.03988113]
[1750857927862,2.2675,147.21,147.13,2.2068]
[1750857927863,40.4058,147.22,147.18,7.03988113]
[1750857928063,37.98,147.22,147.18,7.03988113]
[1750857928249,37.98,147.22,147.14,7.03988113]
[1750857928250,44.7692,147.22,147.14,7.03988113]
[1750857928460,7.03988113,147.2,147.09,2.3547]
[1750857928657,4.4766,147.19,147.1,7.03988113]
[1750857928959,37.98,147.18,147.16,6.7915]
[1750857930368,37.98,147.18,147.1,7.03988113]
[1750857931565,37.98,147.18,147.16,6.7915]
[1750857932361,37.98,147.18,147.15,6.7918]
[1750857932669,13.83128113,147.17,147.08,47.41348113]
[1750857932968,13.83128113,147.17,147.08,45.01988113]
[1750857933368,6.7915,147.16,147.08,45.01988113]
[1750857933570,7.03988113,147.17,147.08,37.98]
[1750857933961,13.83128113,147.17,147.13,6.7929]
[1750857934270,7.03988113,147.17,147.08,37.98]
[1750857934568,13.83218113,147.15,147.07,624.76]
[1750857934871,7.03988113,147.13,147.06,2.2068]
[1750857935169,37.98,147.14,147.06,2.2068]
[1750857935358,37.98,147.14,147.07,7.03988113]
[1750857935561,37.98,147.14,147.12,6.7931]
[1750857935964,45.01988113,147.14,147.06,64.2068]
[1750857936157,45.01988113,147.14,147.06,2.2068]
[1750857936671,45.01988113,147.14,147.04,37.98]
[1750857937164,7.03988113,147.12,147.04,37.98]
[1750857937968,7.03988113,147.12,147.09,6.7945]
[1750857938270,7.03988113,147.12,147.04,37.98]
[1750857938571,2.2065,147.13,147.05,7.03988113]
[1750857938772,37.98,147.14,147.05,7.03988113]
[1750857938975,37.98,147.14,147.13,6.7929]
[1750857939162,38.0,147.17,147.09,7.03988113]
[1750857939565,44.7912,147.17,147.13,6.7927]
[1750857939964,7.03988113,147.16,147.08,38.0]
[1750857940166,38.0,147.17,147.08,38.0]
[1750857940366,7.03988113,147.16,147.08,38.0]
[1750857941168,7.03988113,147.14,147.04,45.03988113]
[1750857941476,38.0,147.13,147.04,45.03988113]
[1750857942075,38.0,147.13,147.11,6.7936]
[1750857942275,45.03988113,147.16,147.08,7.03988113]
[1750857942476,45.03988113,147.16,147.07,7.03988113]
[1750857942673,45.03988113,147.16,147.11,6.7938]
[1750857943175,6.7922,147.15,147.11,6.7938]
[1750857943670,45.03988113,147.16,147.11,6.7938]
[1750857943880,13.83238113,147.14,147.1,6.7942]
[1750857944067,13.83238113,147.14,147.05,7.03988113]
[1750857944265,13.83238113,147.14,147.06,62.0]
[1750857944479,13.83238113,147.14,147.1,6.794]
[1750857944881,13.83238113,147.14,147.05,7.03988113]
[1750857945478,6.7932,147.13,147.04,38.0]
[1750857945682,6.7932,147.13,147.05,7.03988113]
[1750857946379,13.83258113,147.14,147.1,6.794]
[1750857947383,13.83258113,147.14,147.05,69.03988113]
[1750857947576,6.7929,147.13,147.05,69.03988113]
[1750857947777,5.61874724,147.15,147.05,62.0]
[1750857948083,7.03988113,147.15,147.05,7.03988113]
[1750857948478,12.66212501,147.15,147.11,6.7936]
[1750857948687,7.03988113,147.15,147.05,7.03988113]
[1750857948884,38.0,147.16,147.05,7.03988113]
[1750857949180,6.7922,147.15,147.05,7.03988113]
[1750857949378,12.41392406,147.15,147.05,7.03988113]
[1750857949587,38.0,147.16,147.07,7.03988113]
[1750857949786,38.0,147.16,147.13,6.7927]
[1750857949989,38.0,147.16,147.07,7.03988113]
[1750857949990,4.18878173,147.15,147.07,7.03988113]
[1750857950282,38.0,147.16,147.14,6.7922]
[1750857950483,38.0,147.16,147.09,7.03988113]
[1750857950787,38.0,147.16,147.08,37.94]
[1750857950788,40.1465,147.18,147.11,7.03988113]
[1750857951778,40.1465,147.18,147.16,6.7912]
[1750857952583,40.1465,147.18,147.17,6.7911]
[1750857952885,37.94,147.18,147.17,6.7911]
[1750857954588,2.2617,147.19,147.17,6.7911]
[1750857955183,2.2617,147.19,147.18,6.7906]
[1750857955387,37.92,147.22,147.12,37.92]
[1750857955585,37.92,147.22,147.16,7.03988113]
[1750857956185,37.92,147.22,147.18,7.03988113]
[1750857957088,4.6431,147.24,147.18,7.03988113]
[1750857957685,6.7885,147.23,147.16,44.95988113]
[1750857957989,4.6431,147.24,147.16,44.95988113]
[1750857958792,6.7886,147.23,147.19,6.7899]
[1750857959088,7.03988113,147.21,147.12,57.30483388]
[1750857959298,37.92,147.21,147.14,7.03988113]
[1750857959881,44.95988113,147.21,147.12,44.95988113]
[1750857960087,7.03988113,147.19,147.12,37.92]
[1750857960384,6.7909,147.18,147.15,6.7919]
[1750857960579,9.0046,147.18,147.15,6.7919]
[1750857961093,37.92,147.21,147.12,44.95988113]
[1750857961386,40.1337,147.23,147.21,6.7891]
[1750857962090,2.4195,147.25,147.18,7.03988113]
[1750857962280,40.3395,147.25,147.17,7.03988113]
[1750857962485,54.16708113,147.25,147.17,7.03988113]
[1750857962792,54.16708113,147.25,147.22,6.7887]
[1750857963094,47.37938113,147.25,147.22,6.7887]
[1750857963391,40.3395,147.25,147.17,7.03988113]
[1750857963895,40.3395,147.25,147.22,6.7885]
[1750857964093,40.3395,147.25,147.17,7.03988113]
[1750857964593,37.92,147.25,147.19,7.03988113]
[1750857964786,40.1341,147.28,147.19,7.03988113]
[1750857964982,2.2141,147.28,147.27,6.7865]
[1750857965188,2.2429,147.31,147.22,7.03988113]
[1750857965594,2.2429,147.31,147.28,6.7858]
[1750857965792,7.03988113,147.3,147.21,2.2379]
[1750857966182,7.03988113,147.3,147.22,7.03988113]
[1750857966383,2.2429,147.31,147.22,7.03988113]
[1750857966593,9.0277,147.31,147.27,6.7861]
[1750857966796,16.06758113,147.31,147.27,6.7861]
[1750857967102,13.82578113,147.29,147.21,2.2379]
[1750857967285,7.03988113,147.29,147.21,9.27778113]
[1750857967685,9.28278113,147.31,147.22,62.0]
[1750857967989,9.28278113,147.31,147.23,7.03988113]
[1750857968190,7.03988113,147.29,147.22,62.0]
[1750857968387,7.03988113,147.29,147.21,2.2379]
[1750857968695,6.7863,147.28,147.21,2.2379]
[1750857969297,7.03988113,147.29,147.21,2.2379]
[1750857969995,7.03988113,147.25,147.17,44.93988113]
[1750857971198,6.7879,147.24,147.21,6.789]
[1750857971887,13.82748113,147.25,147.22,6.7888]
[1750857972092,7.03988113,147.27,147.17,44.93988113]
[1750857972294,2.2429,147.31,147.17,44.93988113]
[1750857972295,9.28278113,147.31,147.21,7.03988113]
[1750857972602,37.86,147.3,147.21,44.89988113]
[1750857972898,7.03988113,147.29,147.21,37.86]
[1750857973095,6.7863,147.28,147.21,37.86]
[1750857973691,6.7863,147.28,147.24,6.7875]
[1750857973896,6.7863,147.28,147.21,37.86]
[1750857974088,6.7865,147.27,147.21,37.86]
[1750857974295,6.7865,147.27,147.24,6.7876]
[1750857974496,9.0277,147.31,147.25,7.03988113]
[1750857974694,2.2429,147.31,147.25,7.03988113]
[1750857974899,37.86,147.34,147.27,7.03988113]
[1750857975398,37.86,147.34,147.27,62.0]
[1750857976201,37.86,147.34,147.26,7.03988113]
[1750857976402,44.6436,147.34,147.26,7.03988113]
[1750857977703,44.6436,147.34,147.3,6.785]
[1750857977909,6.7838,147.33,147.25,37.86]
[1750857978202,37.86,147.34,147.3,6.785]
[1750857978404,37.86,147.34,147.25,44.89988113]
[1750857978603,6.7838,147.33,147.25,44.89988113]
[1750857979203,6.7843,147.32,147.25,37.86]
[1750857979397,4.6542,147.32,147.25,37.86]
[1750857979598,7.03988113,147.31,147.27,6.7861]
[1750857980006,7.03988113,147.31,147.22,37.84]
[1750857980303,40.1793,147.3,147.22,37.84]
[1750857981304,46.9646,147.3,147.26,6.7867]
[1750857982110,6.7856,147.29,147.25,6.7872]
[1750857982612,13.82668113,147.27,147.24,6.7877]
[1750857982908,40.1793,147.3,147.15,2.3697]
[1750857983107,7.03988113,147.29,147.19,44.87988113]
[1750857983506,7.03988113,147.29,147.19,47.15978113]
[1750857983705,40.1793,147.3,147.19,47.15978113]
[1750857983912,6.7856,147.29,147.19,47.15978113]
[1750857984110,7.03988113,147.28,147.19,40.1199]
[1750857984407,7.03988113,147.26,147.19,37.84]
[1750857984611,44.87988113,147.26,147.19,37.84]
[1750857985016,44.87988113,147.26,147.24,6.7878]
[1750857985610,37.84,147.29,147.2,7.03988113]
[1750857985806,37.84,147.29,147.19,40.1951]
[1750857986010,37.84,147.29,147.2,7.03988113]
[1750857986211,37.84,147.29,147.26,6.7866]
[1750857987417,37.84,147.29,147.27,6.7864]
[1750857989014,37.84,147.29,147.28,6.786]
[1750857989627,51.66548113,147.29,147.2,7.03988113]
[1750857990130,51.66548113,147.29,147.26,6.7866]
[1750857990426,6.7861,147.28,147.2,7.03988113]
[1750857990616,7.03988113,147.27,147.24,6.7876]
[1750857990816,13.82658113,147.27,147.24,6.7876]
[1750857991221,13.82658113,147.27,147.25,6.7873]
[1750857992032,37.84,147.29,147.24,6.7878]
[1750857992330,7.03988113,147.26,147.24,6.7878]
[1750857992530,37.84,147.25,147.24,6.7878]
[1750857992729,37.84,147.25,147.15,40.2097]
[1750857992931,6.7879,147.24,147.15,47.24958113]
[1750857993129,40.2021,147.25,147.24,6.7879]
[1750857993338,37.84,147.25,147.24,6.7879]
[1750857993522,6.7867,147.27,147.24,6.7879]
[1750857993723,44.6267,147.27,147.24,6.7879]
[1750857994228,37.84,147.27,147.19,7.03988113]
[1750857994727,37.84,147.26,147.24,6.7876]
[1750857995325,37.84,147.26,147.23,6.7881]
[1750857995525,7.03988113,147.25,147.16,22.94828113]
[1750857996034,37.84,147.26,147.15,102.2097]
[1750857996035,7.03988113,147.23,147.15,37.84]
[1750857996231,37.84,147.22,147.15,37.84]
[1750857996746,2.3936,147.24,147.15,37.84]
[1750857996747,7.03988113,147.26,147.17,7.03988113]
[1750857996930,44.87988113,147.26,147.17,7.03988113]
[1750857997325,51.66688113,147.26,147.23,6.7881]
[1750857998537,6.7874,147.25,147.22,6.7886]
[1750857998728,7.03988113,147.24,147.16,7.03988113]
[1750857999228,13.82808113,147.24,147.21,6.7892]
[1750858000330,6.7882,147.24,147.21,6.7892]
[1750858001036,6.7876,147.25,147.16,7.03988113]
[1750858001632,6.7876,147.25,147.22,6.7888]
[1750858001827,6.7879,147.24,147.22,6.7888]
[1750858002028,6.7879,147.24,147.17,7.03988113]
[1750858002231,6.7884,147.23,147.17,7.03988113]
[1750858002440,44.87988113,147.26,147.17,7.03988113]
[1750858002639,44.87988113,147.26,147.16,7.03988113]
[1750858003035,6.7881,147.24,147.16,7.03988113]
[1750858003437,44.87988113,147.26,147.16,7.03988113]
[1750858003740,6.7887,147.23,147.16,7.03988113]
[1750858003934,6.7887,147.23,147.2,6.7896]
[1750858004734,44.83988113,147.22,147.13,69.03988113]
[1750858005037,37.8,147.21,147.13,69.03988113]
[1750858005437,37.8,147.21,147.15,7.03988113]
[1750858006344,37.8,147.21,147.12,49.54178113]
[1750858006545,37.8,147.21,147.12,4.7019]
[1750858006945,6.7907,147.18,147.15,6.7918]
[1750858007148,37.8,147.21,147.12,4.7019]
[1750858007847,7.03988113,147.2,147.12,2.3903]
[1750858008049,37.8,147.21,147.14,7.03988113]
[1750858008251,6.7898,147.2,147.16,6.7915]
[1750858008553,37.8,147.21,147.16,6.7915]
[1750858008746,6.7901,147.2,147.16,6.7915]
[1750858008949,6.7901,147.2,147.17,6.7909]
[1750858009646,37.8,147.21,147.13,13.5857]
[1750858009849,2.2393,147.22,147.16,7.03988113]
[1750858010051,37.8,147.24,147.16,44.83988113]
[1750858010245,4.5133,147.28,147.18,7.03988113]
[1750858010441,37.8,147.27,147.18,7.03988113]
[1750858011142,44.5868,147.27,147.23,6.788]
[1750858011852,37.8,147.27,147.2,7.03988113]
[1750858012251,37.8,147.27,147.25,6.7871]
[1750858012454,4.5133,147.28,147.25,6.7871]
[1750858012654,42.3133,147.28,147.25,6.7871]
[1750858012845,8.9972,147.28,147.24,6.7877]
[1750858013040,46.7972,147.28,147.24,6.7877]
[1750858013454,47.05078113,147.28,147.18,62.0]
[1750858014152,47.05078113,147.28,147.19,7.03988113]
[1750858014342,40.0109,147.28,147.19,7.03988113]
[1750858014541,46.7972,147.28,147.24,6.7875]
[1750858015449,6.7866,147.27,147.24,6.7875]
[1750858016155,47.05078113,147.28,147.18,7.03988113]
[1750858016552,6.7867,147.27,147.24,6.7876]
[1750858017254,40.0109,147.28,147.18,7.03988113]
[1750858017452,46.7972,147.28,147.25,6.7874]
[1750858018261,2.2109,147.28,147.22,7.03988113]
[1750858018649,2.2109,147.28,147.26,6.7869]
[1750858019052,2.2109,147.28,147.18,44.83988113]
[1750858019256,2.2109,147.28,147.2,7.03988113]
[1750858019748,2.2109,147.28,147.25,6.787]
[1750858019953,2.2109,147.28,147.22,7.03988113]
[1750858020156,8.997,147.28,147.22,7.03988113]
[1750858020460,7.03988113,147.27,147.17,2.2206]
[1750858020651,7.03988113,147.25,147.17,2.2206]
[1750858020854,6.7886,147.23,147.16,7.03988113]
[1750858021056,7.03988113,147.23,147.15,37.8]
[1750858021363,6.789,147.22,147.15,37.8]
[1750858021557,7.03988113,147.23,147.13,588.8561]
[1750858021750,2.3254,147.24,147.15,7.03988113]
[1750858021955,40.1254,147.24,147.15,7.03988113]
[1750858022162,47.16528113,147.24,147.15,7.03988113]
[1750858022364,53.95348113,147.24,147.15,7.03988113]
[1750858023358,53.95348113,147.24,147.2,6.7895]
[1750858023561,6.7885,147.23,147.15,7.03988113]
[1750858023960,6.7888,147.22,147.18,6.7903]
[1750858024254,47.16528113,147.24,147.18,6.7903]
[1750858024459,6.7895,147.21,147.17,6.7908]
[1750858024865,47.16528113,147.24,147.13,47.11598113]
[1750858025164,6.7893,147.21,147.13,47.11598113]
[1750858025364,7.03988113,147.22,147.13,47.11598113]
[1750858025757,6.7895,147.21,147.13,47.11598113]
[1750858026050,7.03988113,147.22,147.13,47.11598113]
[1750858026251,2.2857,147.2,147.11,7.03988113]
[1750858026456,37.8,147.19,147.11,7.03988113]
[1750858027162,44.5905,147.19,147.15,6.7918]
[1750858027365,37.8,147.19,147.15,6.7918]
[1750858027557,6.791,147.18,147.15,6.7918]
[1750858027758,37.8,147.19,147.16,6.7914]
[1750858028459,37.8,147.19,147.11,69.03988113]
[1750858029058,44.5904,147.19,147.16,6.7915]
[1750858029461,37.8,147.19,147.11,69.03988113]
[1750858029664,44.5904,147.19,147.16,6.7913]
[1750858030257,6.7908,147.18,147.15,6.7918]
[1750858030864,6.7908,147.18,147.16,6.7915]
[1750858031269,6.7911,147.17,147.11,62.0]
[1750858031462,6.7911,147.17,147.14,6.7922]
[1750858031662,44.83988113,147.19,147.14,6.7922]
[1750858031863,2.2508,147.18,147.14,6.7922]
[1750858032065,6.7914,147.17,147.14,6.7922]
[1750858032465,6.48053585,147.18,147.13,6.7928]
[1750858032658,6.7918,147.16,147.1,42.02973585]
[1750858032866,6.7918,147.16,147.1,4.22973585]
[1750858033266,6.7918,147.16,147.13,6.7925]
[1750858033770,6.7918,147.16,147.14,6.7924]
[1750858034370,6.7913,147.17,147.14,6.7924]
[1750858034962,6.7916,147.16,147.14,6.7924]
[1750858035161,2.2508,147.18,147.1,4.22973585]
[1750858035363,6.48053585,147.18,147.1,4.22973585]
[1750858035771,4.6418,147.2,147.14,4.22973585]
[1750858035968,4.22973585,147.19,147.12,37.74]
[1750858036275,6.791,147.18,147.15,6.7917]
[1750858036577,11.02073585,147.18,147.12,4.22973585]
[1750858036773,11.02073585,147.18,147.16,6.7915]
[1750858036976,4.22973585,147.18,147.16,6.7915]
[1750858037674,11.02063585,147.18,147.15,6.7918]
[1750858038081,11.02063585,147.18,147.12,4.22973585]
[1750858038284,11.02063585,147.18,147.16,6.7913]
[1750858038479,6.7909,147.18,147.16,6.7913]
[1750858038680,8.78443585,147.2,147.17,6.7907]